[Event "Snabb-SM för veteraner, 65+ 2019"]
[Site "Schackcentrum, Vegagatan 20, Gothenburg, Sweden"]
[Date "2019.10.06"]
[Round "10.3"]
[White "Fransson, Lennart"]
[Black "Franzen, Thomas"]
[Result "1-0"]
[TimeControl "15 minutes + 10 seconds per move from move one"]
[WhiteFideId "1706756"]
[BlackFideId "1706039"]
[WhiteElo "1983"]
[BlackElo "1860"]

1. c4 {[%clk 00:15:17]} {[%emt 00:00:01]} e5 {[%clk 00:15:15]} {[%emt
00:00:07]} 2. g3 {[%clk 00:15:25]} {[%emt 00:00:02]} Nf6 {[%clk 00:15:05]}
{[%emt 00:00:20]} 3. Bg2 {[%clk 00:15:32]} {[%emt 00:00:02]} Nc6 {[%clk
00:15:12]} {[%emt 00:00:04]} 4. d3 {[%clk 00:15:20]} {[%emt 00:00:21]} a6
{[%clk 00:14:19]} {[%emt 00:01:04]} 5. Nc3 {[%clk 00:15:25]} {[%emt 00:00:04]}
Bc5 {[%clk 00:14:22]} {[%emt 00:00:07]} 6. Nf3 {[%clk 00:14:56]} {[%emt
00:00:39]} O-O {[%clk 00:14:28]} {[%emt 00:00:05]} 7. O-O {[%clk 00:15:02]}
{[%emt 00:00:03]} h6 {[%clk 00:14:12]} {[%emt 00:00:27]} 8. a3 {[%clk
00:14:40]} {[%emt 00:00:31]} Rb8 {[%clk 00:14:14]} {[%emt 00:00:08]} 9. b4
{[%clk 00:14:42]} {[%emt 00:00:08]} Ba7 {[%clk 00:13:46]} {[%emt 00:00:39]} 10.
b5 {[%clk 00:13:21]} {[%emt 00:01:30]} axb5 {[%clk 00:13:54]} {[%emt 00:00:03]}
11. cxb5 {[%clk 00:13:24]} {[%emt 00:00:07]} Ne7 {[%clk 00:14:03]} 12. Nxe5
{[%emt 00:00:10]} Bd4 13. Nxf7 {[%clk 00:12:49]} {[%emt 00:00:45]} Rxf7 {[%clk
00:14:20]} {[%emt 00:00:03]} 14. Qb3 {[%clk 00:12:48]} {[%emt 00:00:10]} d5
{[%clk 00:10:43]} {[%emt 00:03:47]} 15. e3 {[%clk 00:12:48]} {[%emt 00:00:10]}
Bb6 {[%clk 00:10:52]} {[%emt 00:00:02]} 16. Ne2 {[%clk 00:12:44]} {[%emt
00:00:13]} Ng6 {[%clk 00:10:42]} {[%emt 00:00:21]} 17. Bb2 {[%clk 00:12:03]}
{[%emt 00:00:51]} c6 {[%clk 00:10:43]} {[%emt 00:00:09]} 18. Bc3 {[%clk
00:11:34]} {[%emt 00:00:38]} Be6 {[%clk 00:10:22]} {[%emt 00:00:32]} 19. a4
{[%clk 00:11:26]} {[%emt 00:00:19]} Qe8 {[%clk 00:09:57]} {[%emt 00:00:35]} 20.
Qb2 {[%clk 00:10:02]} {[%emt 00:01:33]} Bc7 {[%clk 00:09:04]} {[%emt 00:01:04]}
21. b6 {[%clk 00:08:57]} {[%emt 00:01:15]} Bd6 {[%clk 00:09:09]} {[%emt
00:00:05]} 22. Nd4 {[%clk 00:08:49]} {[%emt 00:00:18]} Bd7 {[%clk 00:09:16]}
{[%emt 00:00:03]} 23. a5 {[%clk 00:08:36]} {[%emt 00:00:23]} Ne5 {[%clk
00:08:30]} {[%emt 00:00:56]} 24. Rad1 {[%clk 00:07:56]} {[%emt 00:00:49]} c5
{[%clk 00:08:23]} {[%emt 00:00:18]} 25. Ne2 {[%clk 00:07:57]} {[%emt 00:00:09]}
Bc6 {[%clk 00:08:12]} {[%emt 00:00:22]} 26. Nf4 {[%clk 00:07:20]} {[%emt
00:00:46]} g5 {[%clk 00:07:46]} {[%emt 00:00:36]} 27. Ne2 {[%clk 00:07:25]}
{[%emt 00:00:04]} Nh5 {[%clk 00:06:20]} {[%emt 00:01:37]} 28. Bxe5 {[%clk
00:06:43]} {[%emt 00:00:52]} Bxe5 {[%clk 00:06:28]} {[%emt 00:00:02]} 29. d4
{[%clk 00:06:51]} {[%emt 00:00:02]} Bg7 {[%clk 00:05:52]} {[%emt 00:00:47]} 30.
Nc3 {[%clk 00:06:10]} {[%emt 00:00:51]} cxd4 {[%clk 00:05:59]} {[%emt
00:00:03]} 31. exd4 {[%clk 00:06:10]} {[%emt 00:00:09]} Qd7 {[%clk 00:05:41]}
{[%emt 00:00:29]} 32. Qc2 {[%clk 00:04:36]} {[%emt 00:01:44]} Nf6 {[%clk
00:04:57]} {[%emt 00:00:55]} 33. Rfe1 {[%clk 00:04:41]} {[%emt 00:00:03]} Re8
{[%clk 00:04:40]} {[%emt 00:00:27]} 34. Re5 {[%clk 00:03:58]} {[%emt 00:00:53]}
Rfe7 {[%clk 00:03:35]} {[%emt 00:01:15]} 35. Rde1 {[%clk 00:03:43]} {[%emt
00:00:24]} Rxe5 {[%clk 00:03:07]} {[%emt 00:00:39]} 36. dxe5 {[%clk 00:03:49]}
{[%emt 00:00:03]} Ng4 {[%clk 00:03:04]} {[%emt 00:00:13]} 37. f4 {[%clk
00:03:08]} {[%emt 00:00:51]} d4 {[%clk 00:02:31]} {[%emt 00:00:43]} 38. Ne4
{[%clk 00:02:58]} {[%emt 00:00:19]} d3 {[%clk 00:02:38]} {[%emt 00:00:04]} 39.
Qc4+ {[%clk 00:02:46]} {[%emt 00:00:22]} Kh8 {[%clk 00:02:40]} {[%emt
00:00:08]} 40. Nc5 {[%clk 00:01:56]} {[%emt 00:00:59]} d2 {[%clk 00:01:53]}
{[%emt 00:00:58]} 41. Rd1 {[%clk 00:01:45]} {[%emt 00:00:21]} Ne3 {[%clk
00:01:14]} {[%emt 00:00:50]} 42. Nxd7 {[%clk 00:01:50]} {[%emt 00:00:04]} Nxc4
{[%clk 00:01:23]} {[%emt 00:00:01]} 43. Bxc6 {[%clk 00:01:51]} {[%emt
00:00:09]} bxc6 {[%clk 00:01:32]} {[%emt 00:00:02]} 44. b7 {[%clk 00:01:56]}
{[%emt 00:00:05]} Nxa5 {[%clk 00:00:57]} {[%emt 00:00:45]} 45. b8=Q {[%clk
00:02:03]} {[%emt 00:00:02]} Rxb8 {[%clk 00:01:06]} {[%emt 00:00:02]} 46. Nxb8
{[%clk 00:02:09]} {[%emt 00:00:04]} Nc4 {[%clk 00:01:14]} {[%emt 00:00:02]} 47.
Nxc6 {[%clk 00:02:11]} {[%emt 00:00:07]} Bf8 {[%clk 00:01:23]} 48. Kf1 {[%clk
00:01:52]} {[%emt 00:00:28]} Ne3+ {[%clk 00:00:57]} {[%emt 00:00:36]} 49. Ke2
{[%clk 00:02:00]} {[%emt 00:00:02]} Nxd1 {[%clk 00:01:07]} 50. Kxd1 {[%clk
00:02:08]} {[%emt 00:00:02]} gxf4 {[%clk 00:01:15]} {[%emt 00:00:02]} 51. gxf4
{[%clk 00:02:16]} {[%emt 00:00:02]} Kg7 {[%clk 00:01:24]} {[%emt 00:00:01]} 52.
f5 {[%clk 00:02:11]} {[%emt 00:00:15]} Bc5 {[%clk 00:01:27]} {[%emt 00:00:06]}
53. Kxd2 {[%clk 00:02:17]} {[%emt 00:00:04]} h5 {[%clk 00:01:33]} {[%emt
00:00:05]} 54. Kd3 {[%clk 00:02:23]} {[%emt 00:00:03]} Kf7 {[%clk 00:01:39]}
{[%emt 00:00:04]} 55. Ke4 {[%clk 00:02:28]} {[%emt 00:00:04]} h4 {[%clk
00:01:40]} {[%emt 00:00:09]} 56. h3 {[%clk 00:02:37]} Ba3 {[%clk 00:01:46]}
{[%emt 00:00:05]} 57. Kf4 {[%clk 00:02:30]} {[%emt 00:00:16]} Bc5 {[%clk
00:01:52]} {[%emt 00:00:05]} 58. Nd8+ {[%clk 00:02:18]} {[%emt 00:00:22]} Ke8
{[%clk 00:01:56]} {[%emt 00:00:06]} 59. Ne6 {[%clk 00:02:25]} {[%emt 00:00:02]}
Bf2 {[%clk 00:02:04]} {[%emt 00:00:02]} 60. Kg4 {[%clk 00:02:29]} {[%emt
00:00:06]} Bg3 {[%clk 00:02:09]} {[%emt 00:00:06]} 61. Nf4 {[%clk 00:02:32]}
{[%emt 00:00:06]} Kf7 {[%clk 00:02:06]} {[%emt 00:00:13]} 62. f6 {[%clk
00:02:40]} {[%emt 00:00:02]} Ke8 {[%clk 00:01:58]} {[%emt 00:00:19]} 63. Kf5
{[%clk 00:02:47]} {[%emt 00:00:02]} Be1 {[%clk 00:01:33]} {[%emt 00:00:35]} 64.
e6 {[%clk 00:02:53]} {[%emt 00:00:04]} Bb4 {[%clk 00:01:40]} {[%emt 00:00:03]}
65. Ng6 {[%clk 00:02:46]} {[%emt 00:00:16]} 1-0

[Event "Snabb-SM för veteraner, 65+ 2019"]
[Site "Schackcentrum, Vegagatan 20, Gothenburg, Sweden"]
[Date "2019.10.06"]
[Round "10.4"]
[White "Green, Per"]
[Black "Olsson, Tomas"]
[Result "1/2-1/2"]
[TimeControl "15 minutes + 10 seconds per move from move one"]
[WhiteFideId "1703811"]
[BlackFideId "1702696"]
[WhiteElo "1923"]
[BlackElo "1973"]

1. Nf3 {[%clk 00:15:19]} {[%emt 01:34:41]} Nf6 {[%clk 00:15:15]} {[%emt
00:00:05]} 2. c4 {[%clk 00:15:27]} {[%emt 00:00:01]} g6 {[%clk 00:15:21]}
{[%emt 00:00:05]} 3. b3 {[%clk 00:15:27]} {[%emt 00:00:10]} Bg7 {[%clk
00:15:28]} {[%emt 00:00:03]} 4. Bb2 {[%clk 00:15:36]} {[%emt 00:00:02]} c5
{[%clk 00:15:26]} {[%emt 00:00:12]} 5. g3 {[%clk 00:15:39]} {[%emt 00:00:06]}
Nc6 {[%clk 00:15:27]} {[%emt 00:00:11]} 6. Bg2 {[%clk 00:15:47]} {[%emt
00:00:01]} O-O {[%clk 00:15:28]} {[%emt 00:00:09]} 7. O-O {[%clk 00:15:52]}
{[%emt 00:00:05]} d6 {[%clk 00:15:12]} {[%emt 00:00:27]} 8. d4 {[%clk
00:15:51]} {[%emt 00:00:10]} cxd4 {[%clk 00:15:15]} {[%emt 00:00:07]} 9. Nxd4
{[%clk 00:15:58]} {[%emt 00:00:04]} Qb6 {[%clk 00:14:55]} {[%emt 00:00:30]} 10.
e3 {[%clk 00:14:59]} {[%emt 00:01:08]} Bg4 {[%clk 00:14:44]} {[%emt 00:00:22]}
11. Qd2 {[%clk 00:14:58]} {[%emt 00:00:11]} Rfd8 {[%clk 00:14:01]} {[%emt
00:00:53]} 12. h3 {[%clk 00:14:06]} {[%emt 00:01:02]} Bd7 {[%clk 00:14:07]}
{[%emt 00:00:04]} 13. Nc3 {[%clk 00:14:11]} {[%emt 00:00:05]} a6 {[%clk
00:13:36]} {[%emt 00:00:42]} 14. Rfe1 {[%clk 00:12:57]} {[%emt 00:01:24]} Rac8
{[%clk 00:13:25]} {[%emt 00:00:21]} 15. Rac1 {[%clk 00:12:28]} {[%emt
00:00:39]} Re8 {[%clk 00:11:13]} {[%emt 00:02:22]} 16. Kh2 {[%clk 00:11:55]}
{[%emt 00:00:43]} Rcd8 {[%clk 00:11:21]} {[%emt 00:00:03]} 17. Nde2 {[%clk
00:11:35]} {[%emt 00:00:30]} Qa5 {[%clk 00:10:48]} {[%emt 00:00:43]} 18. Nf4
{[%clk 00:11:10]} {[%emt 00:00:34]} b5 {[%clk 00:10:11]} {[%emt 00:00:48]} 19.
cxb5 {[%clk 00:10:41]} {[%emt 00:00:39]} axb5 {[%clk 00:10:17]} {[%emt
00:00:03]} 20. Qe2 {[%clk 00:10:32]} {[%emt 00:00:18]} b4 {[%clk 00:09:49]}
{[%emt 00:00:39]} 21. Na4 {[%clk 00:09:30]} {[%emt 00:01:12]} Rc8 {[%clk
00:09:42]} {[%emt 00:00:16]} 22. Red1 {[%clk 00:09:16]} {[%emt 00:00:25]} Red8
{[%clk 00:07:46]} {[%emt 00:02:06]} 23. Nd5 {[%clk 00:09:09]} {[%emt 00:00:14]}
Nxd5 {[%clk 00:07:36]} {[%emt 00:00:22]} 24. Rxd5 {[%clk 00:09:12]} {[%emt
00:00:07]} Qa7 {[%clk 00:06:56]} {[%emt 00:00:50]} 25. Bxg7 {[%clk 00:09:08]}
{[%emt 00:00:13]} Kxg7 {[%clk 00:07:04]} {[%emt 00:00:02]} 26. Qb2+ {[%clk
00:08:42]} {[%emt 00:00:36]} Kg8 {[%clk 00:07:12]} {[%emt 00:00:02]} 27. a3
{[%clk 00:07:25]} {[%emt 00:01:27]} bxa3 {[%clk 00:07:04]} {[%emt 00:00:17]} 28.
Qxa3 {[%clk 00:07:34]} {[%emt 00:00:02]} Ne5 {[%clk 00:06:11]} {[%emt
00:01:02]} 29. Rdd1 {[%clk 00:06:36]} {[%emt 00:01:08]} Rxc1 {[%clk 00:05:56]}
{[%emt 00:00:25]} 30. Rxc1 {[%clk 00:06:43]} {[%emt 00:00:03]} Nd3 {[%clk
00:05:50]} {[%emt 00:00:16]} 31. Rf1 {[%clk 00:06:31]} {[%emt 00:00:22]} Rc8
{[%clk 00:05:37]} {[%emt 00:00:23]} 32. Be4 {[%clk 00:06:31]} {[%emt 00:00:07]}
Bb5 {[%clk 00:05:15]} {[%emt 00:00:34]} 33. Bxd3 {[%clk 00:05:14]} {[%emt
00:01:27]} Bxd3 {[%clk 00:05:24]} {[%emt 00:00:02]} 34. Rc1 {[%clk 00:04:50]}
{[%emt 00:00:34]} Rxc1 {[%clk 00:05:08]} {[%emt 00:00:26]} 35. Qxc1 {[%clk
00:04:59]} {[%emt 00:00:01]} Qb7 {[%clk 00:05:11]} {[%emt 00:00:07]} 36. Qd1
{[%clk 00:04:46]} {[%emt 00:00:22]} Be4 {[%clk 00:04:49]} {[%emt 00:00:33]} 37.
Nc3 {[%clk 00:04:39]} {[%emt 00:00:17]} Bf3 {[%clk 00:04:54]} {[%emt 00:00:05]}
38. Qc2 {[%clk 00:04:03]} {[%emt 00:00:46]} Qa6 {[%clk 00:03:57]} {[%emt
00:01:07]} 39. Qb1 {[%clk 00:03:37]} {[%emt 00:00:36]} Qc6 {[%clk 00:03:46]}
{[%emt 00:00:21]} 40. Qc2 {[%clk 00:03:38]} {[%emt 00:00:09]} Qa6 {[%clk
00:03:18]} {[%emt 00:00:38]} 41. Qb1 {[%clk 00:03:44]} {[%emt 00:00:04]} Ba8
{[%clk 00:03:06]} {[%emt 00:00:23]} 42. e4 {[%clk 00:02:58]} {[%emt 00:00:55]}
e6 {[%clk 00:02:41]} {[%emt 00:00:35]} 43. b4 {[%clk 00:01:06]} {[%emt
00:02:02]} Qb6 {[%clk 00:02:16]} {[%emt 00:00:36]} 44. Qb2 {[%clk 00:01:06]}
{[%emt 00:00:09]} d5 {[%clk 00:01:28]} {[%emt 00:00:58]} 45. exd5 {[%clk
00:00:44]} {[%emt 00:00:32]} exd5 {[%clk 00:01:36]} {[%emt 00:00:02]} 46. Na4
{[%clk 00:00:41]} {[%emt 00:00:13]} Qb5 {[%clk 00:01:15]} {[%emt 00:00:31]} 47.
Nc5 {[%clk 00:00:40]} {[%emt 00:00:11]} d4 {[%clk 00:00:47]} {[%emt 00:00:38]}
48. Qxd4 {[%clk 00:00:48]} {[%emt 00:00:02]} Qc6 {[%clk 00:00:56]} {[%emt
00:00:01]} 49. Qd8+ {[%clk 00:00:52]} {[%emt 00:00:06]} Kg7 {[%clk 00:01:03]}
{[%emt 00:00:03]} 50. Qd4+ {[%clk 00:00:59]} {[%emt 00:00:03]} Kg8 {[%clk
00:01:07]} {[%emt 00:00:05]} 51. Qd8+ {[%clk 00:01:07]} {[%emt 00:00:01]} Kg7
{[%clk 00:01:15]} {[%emt 00:00:02]} 52. Qd4+ {[%clk 00:01:12]} {[%emt
00:00:05]} 1/2-1/2

[Event "Snabb-SM för veteraner, 65+ 2019"]
[Site "Schackcentrum, Vegagatan 20, Gothenburg, Sweden"]
[Date "2019.10.06"]
[Round "10.5"]
[White "Wahlstrom, Lennart"]
[Black "Kvarby, Anders"]
[Result "1-0"]
[TimeControl "15 minutes + 10 seconds per move from move one"]
[WhiteFideId "1706829"]
[BlackFideId "1746596"]
[WhiteElo "2109"]
[BlackElo "1887"]

1. e4 {[%clk 00:15:17]} {[%emt 00:00:02]} d5 {[%clk 00:15:17]} {[%emt
00:00:03]} 2. exd5 {[%clk 00:15:25]} {[%emt 00:00:03]} Qxd5 {[%clk 00:15:26]}
{[%emt 00:00:02]} 3. Nc3 {[%clk 00:15:33]} {[%emt 00:00:02]} Qa5 {[%clk
00:15:35]} {[%emt 00:00:01]} 4. d4 {[%clk 00:15:38]} {[%emt 00:00:04]} Nf6
{[%clk 00:15:44]} {[%emt 00:00:01]} 5. Nf3 {[%clk 00:15:44]} {[%emt 00:00:04]}
Bf5 {[%clk 00:15:49]} {[%emt 00:00:05]} 6. Ne5 {[%clk 00:15:22]} {[%emt
00:00:31]} Nbd7 {[%clk 00:14:53]} {[%emt 00:01:07]} 7. Nc4 {[%clk 00:15:00]}
{[%emt 00:00:32]} Qa6 {[%clk 00:14:07]} {[%emt 00:00:56]} 8. Bf4 {[%clk
00:11:42]} {[%emt 00:03:28]} Qe6+ {[%clk 00:11:51]} {[%emt 00:02:25]} 9. Be2
{[%clk 00:09:31]} {[%emt 00:02:21]} O-O-O {[%clk 00:10:40]} {[%emt 00:01:21]}
10. d5 {[%clk 00:09:08]} {[%emt 00:00:33]} Nxd5 {[%clk 00:09:14]} {[%emt
00:01:36]} 11. Qxd5 {[%clk 00:08:55]} {[%emt 00:00:22]} Qxd5 {[%clk 00:08:15]}
{[%emt 00:01:12]} 12. Nxd5 {[%clk 00:09:02]} {[%emt 00:00:02]} e5 {[%clk
00:07:50]} {[%emt 00:00:35]} 13. Be3 {[%clk 00:07:45]} {[%emt 00:01:27]} Bxc2
{[%clk 00:07:39]} {[%emt 00:00:21]} 14. O-O {[%clk 00:07:00]} {[%emt 00:00:55]}
Nc5 {[%clk 00:04:30]} {[%emt 00:03:19]} 15. Nc3 {[%clk 00:06:11]} {[%emt
00:00:59]} Nd3 {[%clk 00:03:50]} {[%emt 00:00:50]} 16. Bg5 {[%clk 00:03:46]}
{[%emt 00:02:34]} f6 {[%clk 00:03:43]} {[%emt 00:00:18]} 17. Ne3 {[%clk
00:03:52]} {[%emt 00:00:04]} Nxb2 {[%clk 00:02:47]} {[%emt 00:01:06]} 18. Nxc2
{[%clk 00:03:55]} {[%emt 00:00:07]} fxg5 {[%clk 00:02:48]} {[%emt 00:00:09]} 19.
Ne4 {[%clk 00:03:41]} {[%emt 00:00:24]} Be7 {[%clk 00:02:34]} {[%emt 00:00:25]}
20. Rab1 {[%clk 00:03:40]} {[%emt 00:00:10]} Na4 {[%clk 00:02:12]} {[%emt
00:00:32]} 21. Rb5 {[%clk 00:03:32]} {[%emt 00:00:18]} Bf6 {[%clk 00:02:08]}
{[%emt 00:00:14]} 22. Ra5 {[%clk 00:03:19]} {[%emt 00:00:23]} Nb6 {[%clk
00:01:39]} {[%emt 00:00:39]} 23. Rxa7 {[%clk 00:03:16]} {[%emt 00:00:13]} Rd5
{[%clk 00:01:25]} {[%emt 00:00:23]} 24. Bf3 {[%clk 00:02:57]} {[%emt 00:00:29]}
Kb8 {[%clk 00:01:20]} {[%emt 00:00:16]} 25. Nxf6 {[%clk 00:02:25]} {[%emt
00:00:42]} gxf6 {[%clk 00:01:28]} {[%emt 00:00:03]} 26. Bxd5 {[%clk 00:02:27]}
{[%emt 00:00:07]} Kxa7 {[%clk 00:01:36]} {[%emt 00:00:02]} 27. Be4 {[%clk
00:02:13]} {[%emt 00:00:23]} h5 {[%clk 00:01:31]} {[%emt 00:00:16]} 28. Ne3
{[%clk 00:02:20]} {[%emt 00:00:03]} Rd8 {[%clk 00:01:32]} {[%emt 00:00:09]} 29.
Rd1 {[%clk 00:01:52]} {[%emt 00:00:37]} Rxd1+ {[%clk 00:01:40]} {[%emt
00:00:03]} 30. Nxd1 {[%clk 00:02:01]} {[%emt 00:00:01]} Nc4 {[%clk 00:01:44]}
{[%emt 00:00:06]} 31. Bg6 {[%clk 00:01:48]} {[%emt 00:00:22]} h4 {[%clk
00:01:50]} {[%emt 00:00:04]} 32. g3 {[%clk 00:01:52]} {[%emt 00:00:06]} hxg3
{[%clk 00:01:50]} {[%emt 00:00:10]} 33. fxg3 {[%clk 00:01:58]} {[%emt
00:00:03]} Nd6 {[%clk 00:01:57]} {[%emt 00:00:05]} 34. h4 {[%clk 00:02:02]}
{[%emt 00:00:06]} 1-0

[Event "Snabb-SM för veteraner, 65+ 2019"]
[Site "Schackcentrum, Vegagatan 20, Gothenburg, Sweden"]
[Date "2019.10.06"]
[Round "10.6"]
[White "Olesen, Christer"]
[Black "Nyberg, Bo"]
[Result "1-0"]
[TimeControl "15 minutes + 10 seconds per move from move one"]
[WhiteFideId "1739069"]
[BlackFideId "1710583"]
[WhiteElo "1809"]
[BlackElo "1806"]

1. d4 {[%clk 00:15:12]} {[%emt 00:00:08]} d5 {[%clk 00:15:15]} {[%emt
00:00:06]} 2. Bf4 {[%clk 00:15:15]} {[%emt 00:00:05]} c6 {[%clk 00:15:07]}
{[%emt 00:00:19]} 3. Nf3 {[%clk 00:15:02]} {[%emt 00:00:22]} e6 {[%clk
00:14:52]} {[%emt 00:00:26]} 4. e3 {[%clk 00:15:05]} {[%emt 00:00:06]} f5
{[%clk 00:14:53]} {[%emt 00:00:09]} 5. Ne5 {[%clk 00:14:13]} {[%emt 00:01:02]}
Nf6 {[%clk 00:14:56]} {[%emt 00:00:07]} 6. Nd2 {[%clk 00:13:25]} {[%emt
00:00:58]} Be7 {[%clk 00:15:00]} {[%emt 00:00:06]} 7. Bd3 {[%clk 00:12:34]}
{[%emt 00:01:01]} O-O {[%clk 00:15:06]} {[%emt 00:00:05]} 8. O-O {[%clk
00:12:36]} {[%emt 00:00:08]} Ne4 {[%clk 00:14:57]} {[%emt 00:00:20]} 9. f3
{[%clk 00:11:26]} {[%emt 00:01:20]} Nxd2 {[%clk 00:14:58]} {[%emt 00:00:09]} 10.
Qxd2 {[%clk 00:11:33]} {[%emt 00:00:02]} Nd7 {[%clk 00:14:28]} {[%emt
00:00:41]} 11. c4 {[%clk 00:11:21]} {[%emt 00:00:21]} Nxe5 {[%clk 00:13:36]}
{[%emt 00:01:03]} 12. Bxe5 {[%clk 00:11:28]} {[%emt 00:00:03]} Bf6 {[%clk
00:12:13]} {[%emt 00:01:33]} 13. Bxf6 {[%clk 00:10:55]} {[%emt 00:00:43]} Qxf6
{[%clk 00:11:21]} {[%emt 00:01:02]} 14. f4 {[%clk 00:10:51]} {[%emt 00:00:13]}
Kh8 {[%clk 00:09:58]} {[%emt 00:01:34]} 15. Kh1 {[%clk 00:10:19]} {[%emt
00:00:42]} Bd7 {[%clk 00:09:56]} {[%emt 00:00:12]} 16. b4 {[%clk 00:09:40]}
{[%emt 00:00:49]} g5 {[%clk 00:08:24]} {[%emt 00:01:43]} 17. fxg5 {[%clk
00:08:23]} {[%emt 00:01:27]} Qxg5 {[%clk 00:08:31]} {[%emt 00:00:02]} 18. Rf4
{[%clk 00:06:43]} {[%emt 00:01:49]} Rad8 {[%clk 00:06:40]} {[%emt 00:02:02]} 19.
Raf1 {[%clk 00:05:45]} {[%emt 00:01:08]} Rg8 {[%clk 00:05:43]} {[%emt
00:01:07]} 20. c5 {[%clk 00:04:44]} {[%emt 00:01:11]} Rg7 {[%clk 00:04:13]}
{[%emt 00:01:40]} 21. R1f3 {[%clk 00:04:20]} {[%emt 00:00:34]} Rdg8 {[%clk
00:03:59]} {[%emt 00:00:24]} 22. Rg3 {[%clk 00:03:58]} {[%emt 00:00:32]} Qf6
{[%clk 00:04:07]} {[%emt 00:00:02]} 23. Rxg7 {[%clk 00:03:53]} {[%emt
00:00:15]} Rxg7 {[%clk 00:04:16]} {[%emt 00:00:01]} 24. Qf2 {[%clk 00:03:39]}
{[%emt 00:00:24]} Kg8 {[%clk 00:00:53]} {[%emt 00:03:33]} 25. h3 {[%clk
00:03:22]} {[%emt 00:00:26]} e5 {[%clk 00:00:50]} {[%emt 00:00:14]} 26. dxe5
{[%clk 00:03:30]} {[%emt 00:00:02]} Qxe5 {[%clk 00:00:58]} {[%emt 00:00:02]} 27.
Bxf5 {[%clk 00:02:28]} {[%emt 00:01:12]} Bxf5 {[%clk 00:00:42]} {[%emt
00:00:26]} 28. Rxf5 {[%clk 00:02:37]} {[%emt 00:00:01]} Qe7 {[%clk 00:00:42]}
{[%emt 00:00:09]} 29. Qf4 {[%clk 00:02:25]} {[%emt 00:00:21]} Rf7 {[%clk
00:00:45]} {[%emt 00:00:07]} 30. Rxf7 {[%clk 00:01:56]} {[%emt 00:00:40]} Qxf7
{[%clk 00:00:54]} {[%emt 00:00:01]} 31. Qxf7+ {[%clk 00:02:04]} {[%emt
00:00:02]} Kxf7 {[%clk 00:01:03]} {[%emt 00:00:01]} 32. Kh2 {[%clk 00:02:12]}
{[%emt 00:00:01]} Kf6 {[%clk 00:01:12]} {[%emt 00:00:01]} 33. Kg3 {[%clk
00:02:20]} Ke5 {[%clk 00:01:21]} {[%emt 00:00:02]} 34. Kf3 {[%clk 00:02:23]}
{[%emt 00:00:06]} Kf5 {[%clk 00:01:25]} {[%emt 00:00:06]} 35. g4+ {[%clk
00:02:22]} {[%emt 00:00:11]} Kg5 {[%clk 00:01:32]} {[%emt 00:00:03]} 36. Kg3
{[%clk 00:02:25]} {[%emt 00:00:07]} b6 {[%clk 00:01:32]} {[%emt 00:00:11]} 37.
h4+ {[%clk 00:02:27]} {[%emt 00:00:07]} Kf6 {[%clk 00:01:39]} {[%emt 00:00:03]}
38. Kf4 {[%clk 00:02:29]} {[%emt 00:00:09]} bxc5 {[%clk 00:01:33]} {[%emt
00:00:15]} 39. bxc5 {[%clk 00:02:37]} {[%emt 00:00:02]} h6 {[%clk 00:01:19]}
{[%emt 00:00:25]} 40. g5+ {[%clk 00:02:18]} {[%emt 00:00:29]} hxg5+ {[%clk
00:01:27]} {[%emt 00:00:01]} 41. hxg5+ {[%clk 00:02:27]} Kg6 {[%clk 00:01:36]}
{[%emt 00:00:03]} 42. Ke5 {[%clk 00:02:16]} {[%emt 00:00:21]} Kxg5 {[%clk
00:01:37]} {[%emt 00:00:09]} 43. Kd6 {[%clk 00:02:25]} Kf5 {[%clk 00:01:41]}
{[%emt 00:00:07]} 44. Kxc6 {[%clk 00:02:33]} {[%emt 00:00:02]} Ke5 {[%clk
00:01:41]} {[%emt 00:00:10]} 45. Kd7 {[%clk 00:02:35]} {[%emt 00:00:08]} 1-0